Cogmind - Beta 15 @@@ ROGUE MODE // 2025.10.18 @ 12:10:01 Player: TapeIsSticky Result: Destroyed by 7Z-X5I(p) with EM Pulse Gun Performance ------------- Evolutions (0) 0 Regions Visited (3) 600 Robots Destroyed (35) 175 Value Destroyed (737) 737 Prototype IDs (6) 120 Alien Tech Used (0) 0 Bonus (300) 300 TOTAL SCORE: 1932 Bonus ------- Registered with UFD 300 Cogmind --------- Core Integrity 0/250 Matter 234/300 Energy 122/125 System Corruption 1% Temperature Cool (0) Movement Treading (160) Location -8/Scraptown Parts ------- > --- POWER (1) -------- Light Ion Engine > --- PROPULSION (2) --- Light Treads Light Treads > --- UTILITY (2) ------ (None) > --- WEAPON (2) ------- Barrage Gun Flak Cannon > --- INVENTORY (5) ---- Deep Structural Scanner Surveybot 17 Chip Mapping Drone Bay (3/3) Peak State ------------ > --- POWER ------------ Light Ion Engine > --- PROPULSION ------- Light Treads Light Treads > --- UTILITY ---------- Scrap Shield > --- WEAPON ----------- Barrage Gun Flak Cannon > --- INVENTORY -------- Deep Structural Scanner Surveybot 17 Chip Mapping Drone Bay [Rating: 14] Favorites ----------- Power Light Ion Engine Engine Light Ion Engine Propulsion Light Treads Treads Light Treads Utility Huge Storage Unit Device Seismic Detector Storage Huge Storage Unit Protection Scrap Shield Weapon Subdweller Machine Gun Energy Cannon Subdweller Beam Cannon Ballistic Gun Subdweller Machine Gun Ballistic Cannon Battle Cannon Launcher Grenade Launcher Build | -11 -10 -10 -8 ------- Run | Yrd Mat Sub Scr Slots Evolved . | . . . . Power . | . . . . Propulsion . | . . . . Utility . | . . . . Weapon . | . . . . Parts Attached 28 | 6 5 15 2 Power 2 | . 2 . . Engine 2 | . 2 . . Core . | . . . . Reactor . | . . . . Propulsion 4 | 2 . 2 . Treads 4 | 2 . 2 . Leg . | . . . . Wheel . | . . . . Hover . | . . . . Flight . | . . . . Utility 7 | 2 1 4 . Device 1 | 1 . . . Storage 2 | 1 1 . . Processor . | . . . . Hackware . | . . . . Protection 4 | . . 4 . Artifact . | . . . . Weapon 15 | 2 2 9 2 Energy Gun . | . . . . Energy Cannon 1 | . . 1 . Ballistic Gun 11 | 2 2 6 1 Ballistic Cannon 2 | . . 1 1 Launcher 1 | . . 1 . Special Weapon . | . . . . Impact Weapon . | . . . . Slashing Weapon . | . . . . Piercing Weapon . | . . . . Special Melee Weapon . | . . . . Unidentified Prototypes . | . . . . Parts Lost 7 | . 1 6 . Power 1 | . 1 . . Propulsion 1 | . . 1 . Utility 1 | . . 1 . Weapon 4 | . . 4 . Highest Loss Streak 3 | . 1 3 . To Critical Strikes . | . . . . Average Backups 10 | 2 15 7 8 Power . | . . . 1 Propulsion 2 | . 3 2 2 Utility 4 | . 6 2 3 Weapon 2 | . 4 1 1 Tool/Special . | . . . . Unused Backups 23 | . . 12 11 Power 4 | . . 2 2 Propulsion 5 | . . 2 3 Utility 12 | . . 6 6 Weapon 2 | . . 2 . Tool/Special . | . . . . Average Slot Usage (%) 92 | . 96 90 89 Engine 13 | . 12 13 13 Treads 27 | . 27 28 27 Device 4 | . 13 . . Storage 9 | . 14 5 9 Protection 8 | . . 12 13 Ballistic Gun 24 | . 27 23 21 Ballistic Cannon 1 | . . 2 2 Peak Build Rating 14 | 6 9 13 14 Average Rating 9 | 5 7 10 10 On Entrance 6 | . 6 9 11 Naked Turns 4 | . . . 4 Heaviest Build 94 | 8 90 94 94 Greatest Support 40 | 40 40 40 40 Greatest Overweight (x) 28 | . 28 2 2 Average Overweight (x) . | . 1 . . Largest Inventory Capacity 25 | 8 25 25 25 Average Capacity 18 | 7 24 13 18 Most Carried 23 | 4 21 23 13 Average Carried 10 | 2 15 8 9 Final Capacity 25 | 8 25 25 5 Final Carried 21 | 4 21 12 3 Class Distribution -------------------- 78% | Mutant 12% | Scavenger-Mutant 9% | Subdweller-Mutant Dominant Class ---------------- Mutant | -10/Materials Mutant | -10/Subcaves Mutant | -8/Scraptown Resources | -11 -10 -10 -8 ----------- Run | Yrd Mat Sub Scr Matter Collected 1736 | 294 659 679 104 Remotely . | . . . . Salvage Created 981 | 125 670 186 . Parts 86 | 11 59 16 . Haulers Intercepted 2 | . 2 . . Recyclers Shooed 4 | . 4 . . Parts Field Recycled . | . . . . Retrieved Matter . | . . . . Parts Self-Destructed 15 | . . 15 . Prevented . | . . . . Kills | -11 -10 -10 -8 ------- Run | Yrd Mat Sub Scr Combat Hostiles Destroyed 20 | . 15 5 . Guns 19 | . 15 4 . Cannons 1 | . . 1 . Classes Destroyed 10 | 2 6 2 . Worker 3 | . 3 . . Tunneler 3 | 2 1 . . Hauler 2 | . 2 . . Recycler 1 | 1 . . . Operator 1 | . 1 . . Turret 2 | . . 2 . Watcher 3 | . 3 . . Swarmer 6 | . 6 . . Grunt 9 | . 9 . . Subdweller 5 | . . 5 . Best Kill Streak 3 | 2 3 2 . Combat Bots Only 3 | . 3 2 . Max Kills in Single Turn 1 | 1 1 1 . Gunslinging . | . . . . Exploded . | . . . . Melee . | . . . . Uniques/NPCs Destroyed . | . . . . Combat | -11 -10 -10 -8 -------- Run | Yrd Mat Sub Scr Hostile Shots Fired 230 | . 107 122 1 Missed 71 | . 33 38 . Hits 159 | . 74 84 1 Projectile 159 | . 74 84 1 Critical Strikes 3 | . . 3 . Damage Taken 2052 | . 741 1275 36 Core 251 | . 112 103 36 Absorbed by Shields . | . . . . Regen/Repaired (Parts) 319 | . 319 . . Core Remaining (%) 100 | 100 . . . Volleys Fired 173 | 17 81 75 . Largest 2 | 2 2 2 . Hottest 104 | 40 40 104 . Shots Fired 317 | 34 157 125 1 Gun 269 | 34 157 78 . Cannon 30 | . . 29 1 Launcher 18 | . . 18 . Special . | . . . . Kinetic 282 | 34 157 90 1 Thermal 17 | . . 17 . Explosive 18 | . . 18 . Electromagnetic . | . . . . Robot Hit Streak 13 | 7 13 12 1 Robot Miss Streak 6 | 6 6 2 2 Penetration Max . | . . . . Secondary Targets 6 | . 4 2 . Max Gunslinging Chain 1 | . 1 1 . Shots Hit Robots 172 | 16 100 55 1 Core Hits 71 | 6 41 24 . Critical Kills 3 | 2 1 . . Critical Parts Destroyed 1 | . 1 . . Critical Strikes 5 | 2 2 1 . Destroy 5 | 2 2 1 . Melee Attacks . | . . . . Impact . | . . . . Slashing . | . . . . Piercing . | . . . . Sneak Attacks . | . . . . Combat Hostiles . | . . . . Follow-up Attacks . | . . . . Damage Inflicted 2287 | 120 1166 969 32 Guns 1837 | 120 1079 638 . Cannons 153 | . . 139 14 Explosions 192 | . . 192 . Melee . | . . . . Ramming 105 | . 87 . 18 Kinetic 1990 | 120 1079 777 14 Thermal . | . . . . Explosive 192 | . . 192 . Electromagnetic . | . . . . Impact . | . . . . Slashing . | . . . . Piercing . | . . . . Highest Corruption 7 | . . 7 1 Average Corruption 6 | . . 7 1 Corruption Purged . | . . . . Corruption Blocked . | . . . . Effects 45 | . . 44 1 Message Errors 15 | . . 15 . Matter Fused 13 | . . 13 . Heat Flow Errors 3 | . . 3 . Energy Discharges 5 | . . 5 . Parts Rejected 2 | . . 2 . Data Loss (minor) 2 | . . 2 . Data Loss (major) 1 | . . 1 . Misfires 2 | . . 1 1 Weapon Failures 2 | . . 2 . Overload Shots . | . . . . Overflow Damage 7 | . . 7 . Projectiles . | . . . . Explosions 7 | . . 7 . Melee . | . . . . Knockbacks 1 | . 1 . . Impact 1 | . 1 . . Kinetic . | . . . . Secondary . | . . . . Self-Inflicted Damage 121 | . . 103 18 Shots 3 | . . 3 . Rammed 11 | . 11 . . Targets Rammed 13 | . 13 . . Kicked . | . . . . Crushed 2 | . 2 . . Highest Temperature 272 | . 18 272 . Average Temperature 77 | . 8 108 . Received Heat Transfer 834 | . 279 555 . Siege Activations . | . . . . Martial Activations . | . . . . Shielding Activations . | . . . . Robots Disrupted . | . . . . Combat Hostiles . | . . . . Robots Corrupted . | . . . . Combat Hostiles . | . . . . Parts Fried . | . . . . Impact Corruptions . | . . . . Robots Melted . | . . . . Combat Hostiles . | . . . . Parts Melted . | . . . . Heat Transferred . | . . . . Parts Sabotaged . | . . . . Parts Stolen . | . . . . Parts Stripped . | . . . . Power Chain Reactions . | . . . . Alert | -11 -10 -10 -8 ------- Run | Yrd Mat Sub Scr Maximum Alert Level . | . . . . Low Security (%) 100 | 100 100 . . Level 1 . | . . . . Level 2 . | . . . . Level 3 . | . . . . Level 4 . | . . . . Level 5 . | . . . . High Security . | . . . . Max Security . | . . . . Peak Influence 73 | 5 73 . . Initial . | . . . . Average 20 | . 21 . . Influence Increases 912 | 15 497 400 . Destroy 0b10 Robot/C 340 | . 300 40 . Destroy 0b10 Robot/NC 65 | 15 50 . . Destroy Leader 80 | . 80 . . Successful Hack 6 | . 6 . . Destroy Structure 1 | . 1 . . Lose Combat Pursuer 420 | . 60 360 . Influence Decreases 912 | 15 437 299 161 Entered New Map 190 | . . 29 161 Time Decay 692 | 15 437 240 . Lost Part 30 | . . 30 . Squads Dispatched 4 | . 4 . . Investigation 1 | . 1 . . Extermination . | . . . . Reinforcement 3 | . 3 . . Assault . | . . . . Garrison . | . . . . Intercept . | . . . . Searches Triggered . | . . . . Construction Impeded . | . . . . Haulers Reinforced . | . . . . Active Scanning Responses . | . . . . Cargo Convoy Interrupts . | . . . . Stealth | -11 -10 -10 -8 --------- Run | Yrd Mat Sub Scr Distress Signals 1 | . 1 . . Communications Jammed . | . . . . Distress Signals . | . . . . Times Spotted 43 | . 29 13 1 Peak Tracking Total 3 | . 3 2 . Tactical Retreats 8 | . 3 5 . Traps | -11 -10 -10 -8 ------- Run | Yrd Mat Sub Scr Traps Triggered 5 | . 5 . . Indirectly . | . . . . Trap Hack Attempts . | . . . . Triggered . | . . . . Disarmed . | . . . . Reprogrammed . | . . . . Reused . | . . . . Traps Extracted . | . . . . Installed . | . . . . Triggered . | . . . . Machines | -11 -10 -10 -8 ---------- Run | Yrd Mat Sub Scr Machines Disabled 2 | . . 2 . Max in Single Turn 1 | . . 1 . Machines Repaired . | . . . . Machines Dismantled . | . . . . Machines Sabotaged . | . . . . Overloaded Fab Kills . | . . . . Hacking | -11 -10 -10 -8 --------- Run | Yrd Mat Sub Scr Machines Accessed 9 | . 7 . 2 Terminals 4 | . 4 . . Fabricators . | . . . . Repair Stations 1 | . 1 . . Recycling Units 2 | . 2 . . Scanalyzers . | . . . . Garrison Access . | . . . . Total Hacks 46 | . 29 . 17 Successful 39 | . 22 . 17 Failed 7 | . 7 . . Catastrophic 2 | . 2 . . Database Lockouts . | . . . . Manual 11 | . 11 . . Terminals 11 | . 11 . . Fabricators . | . . . . Repair Stations 15 | . 15 . . Recycling Units 3 | . 3 . . Scanalyzers . | . . . . Garrison Access . | . . . . Terminal Hacks 18 | . 1 . 17 Record 16 | . . . 16 Robot Analysis 1 | . 1 . . Proto ID Catalog 1 | . . . 1 Fabricator Hacks . | . . . . Repair Station Hacks 14 | . 14 . . Scan Component 7 | . 7 . . Repair 7 | . 7 . . Recycling Unit Hacks 1 | . 1 . . Retrieve Components 1 | . 1 . . Scanalyzer . | . . . . Garrison Access Hacks . | . . . . Unauthorized Hacks 6 | . 6 . . Terminals 6 | . 6 . . Botnet 2 | . 2 . . Skim 4 | . 4 . . Fabricators . | . . . . Repair Stations . | . . . . Recycling Units . | . . . . Scanalyzers . | . . . . Garrison Access . | . . . . Data Cores Recovered . | . . . . Used . | . . . . Hacking Detections 6 | . 6 . . Full Trace Events . | . . . . Feedback Events . | . . . . Feedback Blocked . | . . . . Robot Schematics Acquired . | . . . . Robots Built . | . . . . Authchips . | . . . . Time . | . . . . Total Robot Build Rating . | . . . . Part Schematics Acquired . | . . . . Parts Built . | . . . . Authchips . | . . . . Time . | . . . . Total Part Build Rating . | . . . . Parts Repaired 7 | . 7 . . Time 182 | . 182 . . Parts Recycled . | . . . . Recycled Matter . | . . . . Retrieved Matter . | . . . . Retrieved Components 1 | . 1 . . Parts Scanalyzed . | . . . . Part Schematics Acquired . | . . . . Parts Damaged . | . . . . Bothacking | -11 -10 -10 -8 ------------ Run | Yrd Mat Sub Scr Used RIF Installer . | . . . . Robots Hacked . | . . . . Non-combat . | . . . . Combat . | . . . . Robot Hacks Applied . | . . . . Relay Couplers Released . | . . . . Fabnet Peak Effective % . | . . . . Robots Rewired . | . . . . Allies Hacked . | . . . . Hacks Repelled . | . . . . Allies | -11 -10 -10 -8 -------- Run | Yrd Mat Sub Scr Total Allies . | . . . . Largest Group . | . . . . Highest-Rated Group . | . . . . Highest-Rated Ally . | . . . . Total Orders . | . . . . Ally Attacks . | . . . . Total Damage . | . . . . Kills . | . . . . Allies Corrupted . | . . . . Allies Melted . | . . . . Intel | -11 -10 -10 -8 ------- Run | Yrd Mat Sub Scr Active Infowar (turns) 3430 | 170 3025 235 . Seismic 3430 | 170 3025 235 . Robot Analysis Total 1 | . 1 . . Derelict Logs Recovered 5 | . . 1 4 Drone Launches . | . . . . Drone Recoveries . | . . . . Exploration | -11 -10 -10 -8 ------------- Run | Yrd Mat Sub Scr Turns Passed 9404 | 223 3075 3686 2420 Spaces Moved 3636 | 70 807 1681 1078 Core 154 | 18 1 . 135 Treads 3482 | 52 806 1681 943 Legs . | . . . . Wheels . | . . . . Hover . | . . . . Flight . | . . . . Fastest Speed 50 | 50 160 160 50 Average Speed 232 | 131 315 203 221 Slowest Speed 1450 | 160 1450 320 320 Overloaded Moves . | . . . . Propulsion Burnouts . | . . . . Robots Hopped . | . . . . Potential Cave-ins 3 | . . 3 . Cave-ins Triggered 1 | . . 1 . Exploration Rate (%) 50 | 4 98 41 57 Regions Visited 3 Branch Regions 2 Pre-discovered Areas 5 | . . . 5 Known Exits Taken . | . . . . Unknown Exits Taken 3 | 1 1 1 . Scrap Searched 8 | . . 5 3 Spaces Dug 2 | . . 2 . Terrain Destroyed 53 | . . 53 . Melee . | . . . . Projectile 9 | . . 9 . AOE 44 | . . 44 . Terrain Rammed 3 | . . . 3 Walls Destroyed . | . . . . Machines Disabled . | . . . . Actions | -11 -10 -10 -8 --------- Run | Yrd Mat Sub Scr Total 4265 | 171 1162 1822 1110 Wait 299 | 75 223 1 . Move 3632 | 69 806 1679 1078 Hop . | . . . . Pick Up 48 | 4 18 22 4 Fast Attach 36 | 6 16 5 9 Attach 9 | . 1 7 1 Detach . | . . . . Swap 12 | . 3 9 . Drop 29 | . 1 13 15 Fire 173 | 17 81 75 . Melee . | . . . . Ram 3 | . . . 3 Kick . | . . . . Crush 13 | . 13 . . Escape Stasis 1 | . . 1 . Rewire . | . . . . Trap . | . . . . Miscellaneous 10 | . . 10 . Route ------- -11/Scrapyard -10/Materials (discovered 6 exits: [*Mat x3] / [*Min x2] / [*Sub]) -10/Subcaves (discovered 3 exits: [*Mat] / [*Rec] / *Scr) -8/Scraptown (discovered 2 exits: Fac x2) History --------- Turn | Location | Event 5 | -11/Scrapyard | Discovered new exit (range 14) 224 | -11/Scrapyard | Entered Materials 301 | -10/Materials | Build established: Mutant 307 | -10/Materials | Discovered new exit (range 13) 526 | -10/Materials | Discovered new exit (range 10) 1374 | -10/Materials | Discovered new exit (range 16) 1590 | -10/Materials | Repaired Lgt. Treads 1618 | -10/Materials | Repaired Lgt. Treads 1645 | -10/Materials | Repaired Assault Rifle 1673 | -10/Materials | Repaired Assault Rifle 1700 | -10/Materials | Repaired Seismic Detector 1728 | -10/Materials | Repaired Lgt. Assault Rifle 1755 | -10/Materials | Repaired Lgt. Assault Rifle 2315 | -10/Materials | Discovered new exit (range 10) 2408 | -10/Materials | Discovered new exit (range 7) 3228 | -10/Materials | Discovered new exit (range 9) 3299 | -10/Materials | Entered Subcaves 3300 | -10/Subcaves | Approached by a straggling Scientist 3549 | -10/Subcaves | Scientist uncovered a shortcut to Scraptown 3550 | -10/Subcaves | Core integrity fell below 50% 3586 | -10/Subcaves | Lost 3 parts (1n2w) 3757 | -10/Subcaves | Learned location of 1 exit from Materials 4105 | -10/Subcaves | Build established: Scavenger-Mutant 4787 | -10/Subcaves | Discovered new exit (range 11) 5130 | -10/Subcaves | Build established: Subdweller-Mutant 5408 | -10/Subcaves | Discovered new exit (range 15) 5453 | -10/Subcaves | A swath of the cavern ceiling suddenly collapsed 5611 | -10/Subcaves | Crushed by falling debris 5646 | -10/Subcaves | A swath of the cavern ceiling suddenly collapsed 5729 | -10/Subcaves | Disturbed a concealed Subdweller 5729 | -10/Subcaves | Disturbed a concealed Subdweller 5750 | -10/Subcaves | Core integrity fell below 20% 6282 | -10/Subcaves | Build established: Mutant 6985 | -10/Subcaves | Entered Scraptown 6985 | -8/Scraptown | System corruption cleaned by C-Scrubber 7424 | -8/Scraptown | Heard Great Nut preacher, LISTEN AND RECITE! 7613 | -8/Scraptown | Scanned Subdweller tech in exchange for log data 7619 | -8/Scraptown | Learned Research garrison access intel 7622 | -8/Scraptown | Learned Factory trap positions 7625 | -8/Scraptown | Learned location of 2 exits from Lower Caves 7629 | -8/Scraptown | Learned Factory emergency access door positions 7827 | -8/Scraptown | Visited UFD Registry 7827 | -8/Scraptown | Registered with UFD as "Bladedrive" 8035 | -8/Scraptown | Visited Science Testing Area 8198 | -8/Scraptown | Visited Curators Association 8246 | -8/Scraptown | Visited Derelict Rescue Squad 8272 | -8/Scraptown | Found DRS Beacon 8327 | -8/Scraptown | Visited Scrapoid Pod Storage 8362 | -8/Scraptown | Visited Science Guys 8468 | -8/Scraptown | Visited Scrap Suit Storage 8522 | -8/Scraptown | Visited Scrapoid Research Area 8574 | -8/Scraptown | Visited Cartography Club 8630 | -8/Scraptown | Found Surveybot 17 Chip 8669 | -8/Scraptown | Found Deep Structural Scanner 8675 | -8/Scraptown | Learned location of Recycling (-8) 8675 | -8/Scraptown | Learned location of Extension (-6) 8675 | -8/Scraptown | Learned location of Armory (-4) 8675 | -8/Scraptown | Learned 24 Factory zone layouts 8675 | -8/Scraptown | Learned 12 Research zone layouts 8675 | -8/Scraptown | Learned 4 Access zone layouts 8675 | -8/Scraptown | Learned 16 Proximity Caves zone layouts 8675 | -8/Scraptown | Learned 4 Hub_04(d) zone layouts 8675 | -8/Scraptown | Learned Storage emergency access door positions 8675 | -8/Scraptown | Learned location of 2 exits from Lower Caves 8675 | -8/Scraptown | Learned location of 2 exits from Proximity Caves 8675 | -8/Scraptown | Identified exit to Factory 8786 | -8/Scraptown | Visited IN-MT5's Study 8815 | -8/Scraptown | Visited Cyclists 9405 | -8/Scraptown | Attacked by Scraptown defenders 9405 | -8/Scraptown | Destroyed by 7Z-X5I(p) with EM Pulse Gun Last Messages --------------- 09301_ Dropped Lgt. Treads. 09302_ Dropped Lgt. Ion Engine. 09302_ Dropped Lgt. Treads. 09303_ Slammed into Wall. 09303_ Destabilizing: Core damaged (-7). 09304_ Slammed into Wall. 09304_ Destabilizing: System corrupted (+1). 09305_ Slammed into Wall. 09306_ Acquired Lgt. Treads. 09309_ Acquired Flak Cannon. 09312_ Acquired Scrap Shield. 09316_ Acquired Barrage Gun. 09320_ Acquired Lgt. Ion Engine. 09324_ Acquired Lgt. Treads. 09402_ Dropped Scrap Shield. 09405_ System corrupted: FCS attempts to trigger Flak Cannon. 09405_ System corrupted: Flak Cannon misfires. 09405_ ANNOUNCEMENT: Intruder alert! Defend Scraptown! Map ----- +----------------------------------------------------+ | ?????????????????????????????????????????????????? | | ?????????????????????????????????????????????????? | | ?????????????????????????????????????????????????? | | ?????????????????????????????????????????????????? | | ?????????????????????????????????????????????????? | | ???????????????????#############?????????????????? | | ???????????????????# # # #?#####???????????? | | ??????????????????##### # # ## #""""" ?????#####? | | ??????????????????# ##### # # " " ?????"! ? | | ?????????#????????# # # # #? """???" "? | | ???????? #???????# # ## #### ##? """#?## X# | | ???????? #???????# # # # ## " """#?#" | | ???????? #???????# ####X# ##""" " #?#"! | | ??????"" #???????# ## #### # ##""" #?#"! | | ??????"" #???????# # # #""" ""#?#"! | | ?????? #???????###### ## #### " "#?#" | | ?????? #???????# #? "#??? | | ??????? #???????# x #??? ??????? | | ??????? #???????####### ######????# #?????????# | | ######## ####???????##### ########### ########### | | #???????#"""" """"""""""" """"""""""" | | #???????#" [= | | #???????#" &==! | | #???????#" [!!*! | | #???????#" []*! | | ### #???#####" @ | | #?# #???#"""" """"""""""""""""""""""" | | #?# #???#"""" """"""""""""""""""""""" | | #?# #???#"""" ""###### ############# | | #?# #???#""""p ""#??? ??????????? | | #?# #???#"""" ""#?? ?????????? | | #?# ###?#"""" ""#? "" "" ????????? | | ??# ""#"#"""" ""#? "" "" ????????? | | ??# """"#"""" ""# " ? ????##### | | ??# ""#######" "" "" ????? | | ??# ###?????#" "" "" ?????? | | ??# #########" ""# " ???????##### | | ??# ""# "" ???????????? | | ??# ""#? "" ""??????????? | | ??# ""#?? ??????????? | | ??# ""#???? ???????????? | | ### ""###### ############# | | """"""""""""""""""""""" | | """"""""""""""""""""""" | | | | | | | | #""""#" | | #????#" | | #????#"""""" """"""""""" """""""""" | +----------------------------------------------------+ Best States ------------- Heat Dissipation 25 Energy Generation 10 Energy Capacity 250 Matter Stores 300 Matter Capacity 300 Sight Range 16 Terrain Scan Density 10 Armor Coverage 800 Evasion (%) 50 Recoil Reduction 2 Item Schematics ----------------- None Robot Schematics ------------------ None Fabricated ------------ Nothing Repaired ---------- Lgt. Treads | 51% | -10/Materials Lgt. Treads | 55% | -10/Materials Assault Rifle | 68% | -10/Materials Assault Rifle | 70% | -10/Materials Seismic Detector | 25% | -10/Materials Lgt. Assault Rifle | 5% | -10/Materials Lgt. Assault Rifle | 55% | -10/Materials Alien Tech Used ----------------- None Achievements -------------- None Challenges ------------ None Game ------ Seed ParticleFusionStorage Manual? 0 Play Time 00:24:03 Cumulative 213.5 hours Start 2025.10.18 @ 11:46:21 End 2025.10.18 @ 12:10:01 Sessions 1 Manual Loads 0 Difficulty Rogue Special Mode None Game No. 121 Rogue 121 Adventurer 0 Explorer 0 Win Type - Total 24 Types 10/1/9/1/0/1/1/1/0/0 Lore% 77 Gallery% 67 Achievement% 72 Wizard Run 0 Options --------- Layout 1 ASCII 0 Keyboard 0 Movement Arrows Keybinds 0 Fullscreen 2 Font 24/Tamsyn Map View 50x35 Zoom Use 0% Tactical HUD 1 Map Filters NONE Filters NONE Steam 1 RUN: c942b2f8-0ee8-4d65-aa57-e16752730776